bitfinex-derivatives/quotes_SOLF0:USTF0_20250211
["timestamp","ask_amount","ask_price","bid_price","bid_amount"]
[1739315067743,5.0771,196.97,196.96,0.03676572]
[1739315069245,5.0771,196.97,196.96,6.572e-05]
[1739315074748,0.03419445,196.99,196.96,6.572e-05]
[1739315074948,0.03419445,196.99,196.96,5.07746572]
[1739315075949,0.03419445,196.99,196.96,6.572e-05]
[1739315076149,0.03419445,196.99,196.98,5.0769]
[1739315076350,0.03419445,196.99,196.96,6.572e-05]
[1739315076949,0.03419445,196.99,196.97,5.0771]
[1739315077454,0.03419445,196.99,196.96,6.572e-05]
[1739315078151,0.03419445,196.99,196.97,5.0769]
[1739315078350,0.03419445,196.99,196.96,6.572e-05]
[1739315078752,0.03419445,196.99,196.97,5.0771]
[1739315079053,0.03419445,196.99,196.96,6.572e-05]
[1739315079557,5.11109445,196.99,196.96,6.572e-05]
[1739315079758,0.03419445,196.99,196.96,6.572e-05]
[1739315080058,0.03419445,196.99,196.96,5.07726572]
[1739315080260,0.03419445,196.99,196.96,6.572e-05]
[1739315081257,5.0771,196.97,196.96,6.572e-05]
[1739315083154,0.03419445,196.99,196.96,6.572e-05]
[1739315083863,0.03419445,196.99,196.97,5.0771]
[1739315084361,0.03419445,196.99,196.96,6.572e-05]
[1739315084758,3.2067,197.09,196.96,36.24499334]
[1739315084953,3.2067,197.09,196.97,1.524]
[1739315085259,3.2067,197.09,197.06,5.0748]
[1739315085461,3.2067,197.09,196.99,36.24492762]
[1739315085660,1.481,197.13,196.99,36.24492762]
[1739315085855,5.0733,197.12,197.07,5.0744]
[1739315086058,0.03552725,197.12,197.07,5.0744]
[1739315086362,0.03552725,197.12,197.08,5.10877211]
[1739315086565,5.0732,197.13,197.02,36.24492762]
[1739315086863,0.03215481,197.12,197.08,0.03853232]
[1739315087361,0.03215481,197.12,197.09,5.074]
[1739315088465,0.03215481,197.12,197.08,0.03853232]
[1739315089258,36.24492762,197.1,196.97,1.524]
[1739315089761,5.0746,197.07,197.02,5.0757]
[1739315090264,36.24492762,197.1,197.02,5.0757]
[1739315090461,0.03378645,197.06,197.03,0.03452282]
[1739315091959,5.0753,197.04,197.03,0.03452282]
[1739315092361,1.5087,197.05,197.03,0.03452282]
[1739315092559,0.03378645,197.06,197.03,0.03452282]
[1739315092864,0.03378645,197.06,197.03,5.11012282]
[1739315093062,0.03378645,197.06,197.03,0.03452282]
[1739315093564,0.03378645,197.06,197.05,5.0751]
[1739315093960,0.03378645,197.06,197.03,5.11012282]
[1739315094463,0.03378645,197.06,197.05,5.0751]
[1739315096959,1.5087,197.14,197.03,0.03452282]
[1739315097164,1.5462,197.15,197.03,0.03452282]
[1739315097364,1.5462,197.15,197.02,3.1131]
[1739315097660,5.0734,197.12,197.08,5.0743]
[1739315098265,5.1114496,197.12,197.08,5.10896903]
[1739315098566,0.0380496,197.12,197.08,0.03466903]
[1739315098965,5.1113496,197.12,197.09,5.074]
[1739315099261,0.0380496,197.12,197.08,0.03466903]
[1739315099766,5.074,197.09,197.08,0.03466903]
[1739315100364,0.0380496,197.12,197.08,0.03466903]
[1739315100565,5.0738,197.1,197.08,0.03466903]
[1739315101163,0.0380496,197.12,197.08,0.03466903]
[1739315102067,0.0380496,197.12,197.08,5.10886903]
[1739315102269,0.0380496,197.12,197.08,0.03466903]
[1739315102672,5.074,197.09,197.08,0.03466903]
[1739315103265,22.24117812,197.11,196.96,1.5761]
[1739315103468,22.24117812,197.11,196.95,144.78249]
[1739315103967,22.24117812,197.11,196.94,23.75547812]
[1739315104569,22.24117812,197.11,197.01,0.03584702]
[1739315104570,0.03687415,197.04,197.01,0.03584702]
[1739315104764,23.78737812,197.15,197.01,0.03584702]
[1739315104965,0.03492615,197.04,196.98,22.24117812]
[1739315105267,23.78737812,197.15,197.06,0.03669513]
[1739315105462,5.0742,197.09,197.03,5.0754]
[1739315105667,0.03696368,197.12,197.03,5.0754]
[1739315105868,23.78737812,197.15,197.04,0.03671751]
[1739315106069,0.03815176,197.09,197.04,0.03671751]
[1739315106472,0.03815176,197.09,197.07,5.0744]
[1739315106767,0.03815176,197.09,197.04,0.03671751]
[1739315107163,3.0644,197.18,197.06,22.24117812]
[1739315107568,3.0644,197.18,197.04,3.0585]
[1739315107868,1.4626,197.17,197.04,3.0585]
[1739315108268,0.03552727,197.12,197.09,0.03640883]
[1739315108969,0.03552727,197.12,197.11,5.0735]
[1739315109671,5.0714,197.2,197.09,22.27758695]
[1739315109869,2.9397,197.23,197.09,22.27758695]
[1739315110061,2.9397,197.23,197.13,22.24117812]
[1739315110369,1.6082,197.28,197.13,22.24117812]
[1739315110568,2.9874,197.27,197.13,22.24117812]
[1739315110869,5.0704,197.24,197.18,5.0716]
[1739315111070,0.0342524,197.22,197.18,0.03564469]
[1739315111370,0.0342524,197.22,197.19,5.0712]
[1739315111570,0.0342524,197.22,197.18,0.03564469]
[1739315112871,0.0342524,197.22,197.19,5.0714]
[1739315113371,0.0342524,197.22,197.18,0.03564469]
[1739315113771,22.24117812,197.37,197.2,22.24117812]
[1739315113965,22.24117812,197.34,197.17,22.24117812]
[1739315114170,22.24117812,197.31,197.17,22.24117812]
[1739315114370,1.551,197.3,197.17,22.24117812]
[1739315114574,3.0993,197.3,197.14,218.32827812]
[1739315114775,0.03673237,197.24,197.2,0.03386974]
[1739315115671,0.03673237,197.24,197.22,5.0705]
[1739315115867,2.9967,197.34,197.21,22.24117812]
[1739315116070,1.551,197.39,197.24,22.24117812]
[1739315116268,5.0682,197.32,197.26,5.0696]
[1739315116574,5.0682,197.32,197.24,22.24117812]
[1739315116773,5.0686,197.31,197.25,5.0698]
[1739315117074,23.70347812,197.38,197.26,0.03209546]
[1739315117372,23.70347812,197.38,197.22,1.5628]
[1739315117574,23.70347812,197.38,197.3,0.03519656]
[1739315118075,1.4623,197.38,197.3,0.03519656]
[1739315118576,5.0681,197.32,197.3,0.03519656]
[1739315119280,5.0684,197.31,197.3,0.03519656]
[1739315119678,22.24117812,197.32,197.21,193.0]
[1739315119977,1.4917,197.31,197.15,3.0894]
[1739315120780,5.0702,197.24,197.21,0.03771924]
[1739315121380,0.03370547,197.25,197.21,0.03771924]
[1739315121679,5.10360547,197.25,197.21,0.03771924]
[1739315121879,0.03370547,197.25,197.21,0.03771924]
[1739315122278,5.0707,197.22,197.21,0.03771924]
[1739315123080,1.5771,197.24,197.1,215.24117812]
[1739315123278,1.5149,197.23,197.1,22.24117812]
[1739315123475,1.5149,197.23,197.11,5.0735]
[1739315123674,5.0718,197.18,197.06,23.73477812]
[1739315123878,1.5149,197.23,197.06,23.73477812]
[1739315124180,1.5149,197.23,197.08,5.074]
[1739315124381,5.0725,197.15,197.13,0.03581079]
[1739315124678,1.5149,197.23,197.13,0.03581079]
[1739315124883,0.03607748,197.16,197.13,0.03581079]
[1739315125077,1.5149,197.23,197.13,0.03581079]
[1739315125384,1.5149,197.23,197.14,5.0725]
[1739315125574,5.10635039,197.2,197.13,0.03581079]
[1739315125782,0.03485039,197.2,197.13,0.03581079]
[1739315126083,5.10605039,197.2,197.15,5.0724]
[1739315126378,0.03485039,197.2,197.13,0.03581079]
[1739315127482,5.0728,197.14,197.13,0.03581079]
[1739315128182,0.03670321,197.15,197.04,193.0]
[1739315128481,22.24117812,197.19,197.0,22.24117812]
[1739315128678,22.24117812,197.19,197.05,5.0751]
[1739315129182,5.0738,197.11,197.05,5.0751]
[1739315129382,0.03748688,197.14,197.07,5.0745]
[1739315129683,0.03409671,197.12,197.04,22.27323499]
[1739315129876,22.24117812,197.22,197.04,22.24117812]
[1739315130082,0.0390312,197.1,197.08,22.24117812]
[1739315130277,1.5149,197.23,197.08,22.24117812]
[1739315130582,1.5149,197.23,197.15,5.0723]
[1739315130883,1.5149,197.23,197.08,22.24117812]
[1739315131384,0.03734611,197.17,197.14,0.03518368]
[1739315131683,0.03734611,197.17,197.14,5.10788368]
[1739315131884,0.03734611,197.17,197.14,0.03518368]
[1739315132381,0.03734611,197.17,197.14,5.10798368]
[1739315132586,0.03734611,197.17,197.14,0.03518368]
[1739315133081,5.10954611,197.17,197.14,0.03518368]
[1739315133482,0.03734611,197.17,197.14,0.03518368]
[1739315134185,5.10954611,197.17,197.14,0.03518368]
[1739315134881,0.03734611,197.17,197.14,0.03518368]
[1739315135387,0.03734611,197.17,197.05,194.4625]
[1739315135587,22.24117812,197.17,197.05,1.4625]
[1739315135786,22.24117812,197.17,197.0,22.24117812]
[1739315136383,5.0746,197.07,197.02,5.0756]
[1739315136588,0.03578371,197.1,197.03,0.03516814]
[1739315136783,22.24117812,197.17,197.03,0.03516814]
[1739315136982,0.03465656,197.08,197.0,22.24117812]
[1739315137185,5.0727,197.15,197.08,0.03268999]
[1739315137385,3.1984,197.14,197.03,5.0753]
[1739315137686,0.038385,197.13,197.1,0.03278484]
[1739315137884,5.0742,197.09,197.04,5.0752]
[1739315138090,0.03394423,197.13,197.0,22.24117812]
[1739315138289,3.1984,197.14,197.05,0.03778051]
[1739315138589,0.03695206,197.08,197.05,0.03778051]
[1739315139292,5.11125206,197.08,197.05,0.03778051]
[1739315139486,0.03695206,197.08,197.05,0.03778051]
[1739315140392,5.0746,197.07,197.05,0.03778051]
[1739315140593,0.03695206,197.08,197.05,0.03778051]
[1739315140989,0.03695206,197.08,197.07,5.0746]
[1739315141691,1.5992,197.19,197.06,22.24117812]
[1739315141892,1.4817,197.21,197.09,22.24117812]
[1739315142186,5.0713,197.2,197.09,22.24117812]
[1739315142387,5.0713,197.2,197.12,5.0732]
[1739315142692,5.0725,197.15,197.14,0.03778046]
[1739315142892,22.24117812,197.19,197.01,1.6158]
[1739315143192,5.0734,197.12,197.01,1.6158]
[1739315143393,5.10657351,197.12,197.08,0.03761113]
[1739315143598,0.03317351,197.12,197.08,0.03761113]
[1739315145899,0.03317351,197.12,197.08,5.11191113]
[1739315146797,0.03317351,197.12,197.09,5.074]
[1739315147202,0.03317351,197.12,197.08,0.03761113]
[1739315148603,1.4817,197.21,197.09,22.24117812]
[1739315148805,1.4817,197.21,197.09,23.74867812]
[1739315149306,5.0719,197.18,197.14,5.0728]
[1739315149704,0.03741916,197.18,197.14,0.03815246]
[1739315149906,5.072,197.17,197.14,0.03815246]
[1739315150104,0.03741916,197.18,197.14,0.03815246]
[1739315151111,0.03741916,197.18,197.15,5.0724]
[1739315151511,0.03741916,197.18,197.14,0.03815246]
[1739315151712,0.03741916,197.18,197.16,5.0722]
[1739315152206,0.03741916,197.18,197.17,5.072]
[1739315153610,22.24117812,197.35,197.24,5.0699]
[1739315153806,22.24117812,197.35,197.2,22.24117812]
[1739315154007,5.0688,197.3,197.2,22.24117812]
[1739315154508,22.24117812,197.35,197.2,22.24117812]
[1739315154714,22.24117812,197.35,197.23,0.03245553]
[1739315155014,22.24117812,197.31,197.17,1.5919]
[1739315155214,5.0702,197.24,197.17,1.5919]
[1739315155418,22.24117812,197.31,197.22,0.03582637]
[1739315155715,5.0705,197.23,197.22,0.03582637]
[1739315157013,22.24117812,197.31,197.22,0.03582637]
[1739315157211,5.0702,197.24,197.22,0.03582637]
[1739315157610,5.0699,197.25,197.22,0.03582637]
[1739315158317,22.24117812,197.31,197.22,0.03582637]
[1739315158818,5.0701,197.25,197.22,0.03582637]
[1739315159018,22.24117812,197.31,197.22,0.03582637]
[1739315159621,5.0691,197.29,197.22,0.03582637]
[1739315159812,22.24117812,197.31,197.22,0.03582637]
[1739315160423,5.0703,197.24,197.22,0.03582637]
[1739315160820,22.24117812,197.31,197.22,0.03582637]
[1739315161623,5.0696,197.27,197.22,5.10642637]
[1739315161923,22.24117812,197.31,197.22,5.10642637]
[1739315162424,22.24117812,197.31,197.22,0.03582637]
[1739315163722,22.24117812,197.27,197.22,0.03582637]
[1739315163923,3.0963,197.26,197.16,5.0722]
[1739315164224,5.0709,197.22,197.15,1.61]
[1739315164417,3.0963,197.26,197.19,0.03483054]
[1739315164920,5.0704,197.24,197.19,5.10613054]
[1739315165518,3.0963,197.26,197.19,0.03483054]
[1739315165723,1.5807,197.26,197.2,5.0712]
[1739315166022,1.5807,197.26,197.19,0.03483054]
[1739315166424,5.0702,197.25,197.2,5.0711]
[1739315166724,1.5807,197.26,197.19,0.03483054]
[1739315167419,1.4707,197.3,197.19,0.03483054]
[1739315167623,1.4707,197.3,197.21,5.0708]
[1739315168125,1.4707,197.3,197.24,0.03356571]
[1739315168520,5.0691,197.29,197.24,0.03356571]
[1739315168723,1.4707,197.3,197.24,0.03356571]
[1739315169119,5.0711,197.21,197.15,1.61]
[1739315169619,1.4707,197.3,197.15,1.61]
[1739315170224,0.03698051,197.24,197.21,0.03666018]
[1739315170627,0.03698051,197.24,197.21,5.10746018]
[1739315170817,0.03698051,197.24,197.21,0.03666018]
[1739315171623,5.069,197.29,197.25,5.0699]
[1739315171823,1.5017,197.33,197.25,5.0699]
[1739315172024,5.0692,197.28,197.19,3.0429]
[1739315172224,1.5017,197.33,197.22,5.0705]
[1739315172423,1.5017,197.33,197.19,3.0429]
[1739315172629,5.0689,197.29,197.19,3.0429]
[1739315172929,1.5017,197.33,197.25,5.0699]
[1739315173229,5.0686,197.31,197.24,0.03692171]
[1739315173428,5.0686,197.31,197.26,5.0696]
[1739315173627,5.0686,197.31,197.24,0.03692171]
[1739315174631,1.5017,197.33,197.24,0.03692171]
[1739315174829,5.0692,197.29,197.24,0.03692171]
[1739315175131,1.5017,197.33,197.24,0.03692171]
[1739315175329,1.5017,197.33,197.24,5.10702171]
[1739315175531,1.5017,197.33,197.24,0.03692171]
[1739315176026,5.0694,197.28,197.24,0.03692171]
[1739315176329,1.5017,197.33,197.25,5.0699]
[1739315176627,1.5017,197.33,197.24,0.03692171]
[1739315176830,1.5017,197.33,197.25,5.0699]
[1739315177032,1.5017,197.33,197.24,0.03692171]
[1739315177335,5.0691,197.29,197.24,5.10702171]
[1739315177532,1.5017,197.33,197.24,0.03692171]
[1739315177831,22.24117812,197.32,197.24,0.03692171]
[1739315178031,5.0699,197.25,197.24,0.03692171]
[1739315180725,5.0709,197.22,197.17,5.0718]
[1739315181031,5.0709,197.22,197.15,1.61]
[1739315181331,5.0709,197.22,197.17,5.0718]
[1739315181533,5.0709,197.22,197.15,1.61]
[1739315181730,5.0701,197.25,197.17,0.03661173]
[1739315182030,22.24117812,197.32,197.15,1.61]
[1739315182227,0.03692171,197.23,197.19,0.03876508]
[1739315182434,22.24117812,197.32,197.2,5.071]
[1739315182635,0.03422211,197.23,197.19,0.03902199]
[1739315182832,5.0704,197.24,197.15,1.61]
[1739315183033,0.03474892,197.23,197.19,0.03637159]
[1739315183932,0.03474892,197.23,197.21,5.0708]
[1739315184233,0.03474892,197.23,197.19,0.03637159]
[1739315184434,5.10524892,197.23,197.19,5.10767159]
[1739315184635,5.10524892,197.23,197.19,0.03637159]
[1739315185638,0.03474892,197.23,197.19,0.03637159]
[1739315185935,0.03474892,197.23,197.19,13.91850098]
[1739315186132,0.03474892,197.23,197.22,18.95282939]
[1739315186837,5.0691,197.29,197.26,5.0696]
[1739315187037,5.0686,197.3,197.22,13.88212939]
[1739315187236,1.5017,197.33,197.22,13.88212939]
[1739315187438,1.5017,197.33,197.27,5.0692]
[1739315187638,1.5017,197.33,197.22,22.19353348]
[1739315187937,1.5017,197.33,197.28,5.069]
[1739315188137,5.0683,197.32,197.28,5.069]
[1739315189039,1.5017,197.33,197.28,5.069]
[1739315189340,1.5017,197.33,197.29,5.0689]
[1739315189740,6.5697,197.33,197.29,5.0689]
[1739315190641,1.5713,197.36,197.26,0.03745842]
[1739315190940,5.0675,197.35,197.26,0.03745842]
[1739315191139,5.0675,197.35,197.25,22.19353348]
[1739315191332,5.0671,197.36,197.31,5.0682]
[1739315192838,6.5603,197.38,197.33,5.0678]
[1739315193340,1.4935,197.38,197.34,0.03469582]
[1739315193541,5.0673,197.36,197.25,22.19353348]
[1739315193738,5.0673,197.36,197.3,0.03577678]
[1739315194141,1.4935,197.38,197.32,5.0681]
[1739315194442,5.0674,197.35,197.32,5.0681]
[1739315195041,5.0678,197.34,197.3,5.10417678]
[1739315195243,1.4935,197.38,197.3,0.03577678]
[1739315195542,5.0675,197.35,197.31,5.0682]
[1739315195741,5.0675,197.35,197.3,0.03577678]
[1739315196037,1.4935,197.38,197.3,0.03577678]
[1739315196241,5.0677,197.34,197.3,5.10427678]
[1739315196743,5.0677,197.34,197.3,0.03577678]
[1739315196942,5.068,197.33,197.3,0.03577678]
[1739315197337,1.4935,197.38,197.3,0.03577678]
[1739315197545,5.0677,197.34,197.3,5.10417678]
[1739315199040,1.4935,197.38,197.3,0.03577678]
[1739315199947,5.0669,197.37,197.33,5.0677]
[1739315200244,1.4935,197.38,197.3,0.03577678]
[1739315200446,5.0676,197.35,197.31,5.0683]
[1739315200745,1.4935,197.38,197.3,0.03577678]
[1739315201847,5.0674,197.35,197.31,5.0682]
[1739315202047,1.4935,197.38,197.3,0.03577678]
[1739315202546,1.4935,197.38,197.3,5.10437678]
[1739315202749,1.4935,197.38,197.3,0.03577678]
[1739315203143,5.0676,197.35,197.31,5.0682]
[1739315203347,1.4935,197.38,197.3,0.03577678]
[1739315204349,1.4935,197.38,197.33,5.0677]
[1739315205551,1.4935,197.38,197.34,5.0676]
[1739315206047,1.4935,197.38,197.34,5.10503202]
[1739315207252,1.5499,197.39,197.37,5.0668]
[1739315207549,1.5499,197.39,197.34,0.03743202]
[1739315208353,1.5499,197.39,197.36,5.067]
[1739315209251,1.4914,197.46,197.34,22.2309655]
[1739315209546,5.0653,197.43,197.39,5.0662]
[1739315210153,5.0649,197.45,197.41,5.0657]
[1739315210350,1.4914,197.46,197.38,0.03506291]
[1739315210555,15.34668063,197.46,197.38,0.03506291]
[1739315211354,5.0658,197.41,197.38,0.03506291]
[1739315212356,5.0661,197.4,197.38,0.03506291]
[1739315214157,5.0663,197.39,197.38,0.03506291]
[1739315214856,5.0662,197.4,197.38,0.03506291]
[1739315215858,15.34668063,197.46,197.38,0.03506291]
[1739315216057,5.0663,197.39,197.38,0.03506291]
[1739315218458,5.0659,197.41,197.38,0.03506291]
[1739315219362,5.0661,197.4,197.38,0.03506291]
[1739315219565,1.4914,197.46,197.4,5.066]
[1739315220365,1.4914,197.46,197.39,5.0663]
[1739315220566,15.34668063,197.46,197.38,0.03506291]
[1739315220762,5.0663,197.39,197.38,0.03506291]
[1739315221065,0.03345373,197.4,197.33,5.0677]
[1739315221264,5.09975373,197.4,197.3,13.85528063]
[1739315221661,5.09975373,197.4,197.33,13.85528063]
[1739315221868,5.0656,197.42,197.33,13.85528063]
[1739315222065,5.0656,197.42,197.38,5.0664]
[1739315222363,0.03411969,197.39,197.38,5.0664]
[1739315223065,0.03411969,197.39,197.37,5.0668]
[1739315223266,0.03411969,197.39,197.35,0.03791023]
[1739315223864,0.03411969,197.39,197.36,5.0669]
[1739315224068,0.03411969,197.39,197.35,0.03791023]
[1739315224371,0.03411969,197.39,197.37,5.0666]
[1739315224573,0.03411969,197.39,197.35,0.03791023]
[1739315225871,5.10061969,197.39,197.35,0.03791023]
[1739315226372,5.10061969,197.39,197.36,5.0669]
[1739315226566,0.03411969,197.39,197.35,0.03791023]
[1739315227168,0.03411969,197.39,197.38,5.0666]
[1739315228470,0.03411969,197.39,197.35,0.03791023]
[1739315229070,0.03411969,197.39,197.37,5.0668]
[1739315229474,0.03411969,197.39,197.35,0.03791023]
[1739315230677,0.03411969,197.39,197.38,5.0666]
[1739315233780,3.1405,197.49,197.43,5.0651]
[1739315234381,5.0645,197.47,197.43,5.0651]
[1739315234874,1.5428,197.49,197.45,5.0648]
[1739315235077,1.5428,197.49,197.43,0.03462093]
[1739315235682,5.065,197.44,197.43,0.03462093]
[1739315236177,15.39808063,197.49,197.36,206.85528063]
[1739315236380,13.85528063,197.46,197.33,13.85528063]
[1739315236581,3.1604,197.45,197.36,5.0671]
[1739315236881,5.0667,197.38,197.3,13.85528063]
[1739315237081,13.85528063,197.43,197.3,13.85528063]
[1739315237283,13.85528063,197.4,197.27,13.85528063]
[1739315237582,5.068,197.33,197.32,0.03232436]
[1739315237780,0.03203137,197.38,197.32,0.03232436]
[1739315237980,5.0677,197.34,197.32,0.03232436]
[1739315238177,0.03203137,197.38,197.32,0.03232436]
[1739315238675,5.0679,197.33,197.27,18.92468063]
[1739315239081,1.5816,197.37,197.27,18.92468063]
[1739315239378,5.0676,197.34,197.27,18.92468063]
[1739315239781,0.03403578,197.32,197.29,0.03225117]
[1739315241384,0.03403578,197.32,197.29,5.10115117]
[1739315242980,0.03403578,197.32,197.29,0.03225117]
[1739315244081,5.0686,197.3,197.29,0.03225117]
[1739315244885,0.03403578,197.32,197.21,13.85528063]
[1739315245084,5.0702,197.24,197.18,206.85528063]
[1739315245285,13.85528063,197.28,197.15,13.85528063]
[1739315245488,5.0703,197.24,197.17,5.0719]
[1739315245686,1.542,197.27,197.15,13.85528063]
[1739315245884,1.4565,197.26,197.15,13.85528063]
[1739315246187,5.10346213,197.22,197.19,0.03619903]
[1739315246987,0.03256213,197.22,197.19,0.03619903]
[1739315248084,0.03256213,197.22,197.21,5.071]
[1739315248287,0.03256213,197.22,197.21,18.92628063]
[1739315249287,5.0682,197.32,197.24,13.85528063]
[1739315249886,1.479,197.36,197.27,13.85528063]
[1739315250083,2.9928,197.36,197.27,13.85528063]
[1739315250282,0.033195,197.33,197.3,0.03722983]
[1739315250484,5.101095,197.33,197.3,0.03722983]
[1739315251183,0.033195,197.33,197.3,0.03722983]
[1739315251588,0.033195,197.33,197.3,5.10582983]
[1739315251889,0.033195,197.33,197.3,0.03722983]
[1739315252284,0.033195,197.33,197.32,5.0681]
[1739315253190,1.4904,197.44,197.36,5.067]
[1739315253888,5.0656,197.42,197.36,5.067]
[1739315254387,0.035252,197.41,197.37,0.03629554]
[1739315254582,0.035252,197.41,197.36,4.91755554]
[1739315255483,0.035252,197.41,197.39,5.0663]
[1739315255689,1.4904,197.44,197.37,13.85528063]
[1739315255989,0.03516171,197.42,197.38,0.03434189]
[1739315256891,5.0661,197.4,197.38,0.03434189]
[1739315257091,0.03516171,197.42,197.38,0.03434189]
[1739315257390,0.03516171,197.42,197.31,13.85528063]
[1739315257690,5.0667,197.38,197.31,13.85528063]
[1739315258290,5.0667,197.38,197.33,5.0678]
[1739315258491,0.03298927,197.36,197.33,0.03751798]
[1739315258784,13.85528063,197.43,197.33,0.03751798]
[1739315258992,5.0666,197.39,197.33,5.10511798]
[1739315259289,0.03475,197.4,197.33,0.03751798]
[1739315259489,0.03475,197.4,197.34,13.85528063]
[1739315259890,0.03475,197.4,197.39,5.0663]
[1739315260591,0.03475,197.4,197.38,5.10258409]
[1739315261588,0.03475,197.4,197.39,5.0663]
[1739315265189,5.064,197.48,197.44,5.0648]
[1739315265393,2.9949,197.51,197.41,13.85528063]
[1739315265894,5.0646,197.46,197.42,5.0654]
[1739315266394,5.0983791,197.46,197.42,5.10005589]
[1739315266695,5.0653,197.43,197.42,0.03465589]
[1739315268298,0.0337791,197.46,197.35,13.85528063]
[1739315268493,5.0658,197.42,197.35,13.85528063]
[1739315268998,13.85528063,197.49,197.35,13.85528063]
[1739315269200,13.85528063,197.49,197.38,13.85528063]
[1739315269599,0.03262443,197.45,197.42,0.03845206]
[1739315270800,5.0653,197.44,197.42,0.03845206]
[1739315273699,5.0653,197.43,197.42,0.03845206]
[1739315274104,0.03262443,197.45,197.42,0.03845206]
[1739315275002,5.0651,197.44,197.42,0.03845206]
[1739315275203,0.03262443,197.45,197.42,0.03845206]
[1739315275706,5.09762443,197.45,197.42,0.03845206]
[1739315276409,0.03262443,197.45,197.42,0.03845206]
[1739315276704,0.03262443,197.45,197.42,5.10385206]
[1739315277105,0.03262443,197.45,197.43,5.0652]
[1739315277504,0.03262443,197.45,197.42,0.03845206]
[1739315277808,0.03262443,197.45,197.42,5.10405206]
[1739315278106,0.03262443,197.45,197.42,0.03845206]
[1739315278608,5.09742443,197.45,197.42,0.03845206]
[1739315279107,0.03262443,197.45,197.42,0.03845206]
[1739315279307,5.0653,197.43,197.42,0.03845206]
[1739315279908,0.03262443,197.45,197.42,0.03845206]
[1739315280410,5.09742443,197.45,197.42,0.03845206]
[1739315281310,0.03262443,197.45,197.42,0.03845206]
[1739315281612,0.03262443,197.45,197.44,5.065]
[1739315282009,0.03262443,197.45,197.42,0.03845206]
[1739315282208,0.03262443,197.45,197.42,5.10375206]
[1739315282410,0.03262443,197.45,197.42,0.03845206]
[1739315283109,5.0653,197.44,197.42,0.03845206]
[1739315283609,0.03262443,197.45,197.42,0.03845206]
[1739315283909,0.03262443,197.45,197.35,13.85528063]
[1739315284211,5.0665,197.39,197.35,13.85528063]
[1739315284409,13.85528063,197.46,197.34,5.0676]
[1739315284611,13.85528063,197.46,197.32,13.85528063]
[1739315285009,0.0341391,197.41,197.37,0.0386717]
[1739315285616,5.0668,197.38,197.37,0.0386717]
[1739315287716,5.0675,197.35,197.29,13.85528063]
[1739315287916,2.9646,197.42,197.29,13.85528063]
[1739315288215,13.85528063,197.4,197.29,13.85528063]
[1739315288918,0.03665223,197.36,197.33,0.0328996]
[1739315290012,5.0674,197.35,197.33,0.0328996]
[1739315290217,0.03665223,197.36,197.33,0.0328996]
[1739315291014,0.03665223,197.36,197.33,13.88818023]
[1739315291619,0.03665223,197.36,197.33,18.95598023]
[1739315293716,0.03665223,197.36,197.33,13.88818023]
[1739315293925,0.03665223,197.36,197.33,0.0328996]
[1739315295224,0.03665223,197.36,197.34,5.0674]
[1739315297427,0.03665223,197.36,197.33,18.95598023]
[1739315298026,0.03665223,197.36,197.33,13.88818023]
[1739315298227,0.03665223,197.36,197.34,5.0675]
[1739315299830,0.03665223,197.36,197.33,18.95598023]
[1739315300128,5.0676,197.34,197.33,0.0328996]
[1739315301630,0.03665223,197.36,197.33,0.0328996]
[1739315302229,0.03665223,197.36,197.33,5.1007996]
[1739315302931,0.03665223,197.36,197.34,5.0676]
[1739315303130,0.03665223,197.36,197.33,0.0328996]
[1739315303630,0.03665223,197.36,197.33,5.1006996]
[1739315306733,0.03665223,197.36,197.34,5.0676]
[1739315306930,0.03665223,197.36,197.33,0.0328996]
[1739315307732,0.03665223,197.36,197.33,5.1006996]
[1739315308534,0.03665223,197.36,197.34,5.0676]
[1739315308732,0.03665223,197.36,197.33,13.88818023]
[1739315309733,0.03665223,197.36,197.33,18.95598023]
[1739315310935,16.91208063,197.49,197.33,13.88818023]
[1739315311135,16.91208063,197.49,197.37,13.85528063]
[1739315311331,5.0654,197.43,197.37,13.85528063]
[1739315311635,5.0654,197.43,197.37,18.92208063]
[1739315311936,5.0663,197.4,197.34,18.92268063]
[1739315312129,5.0663,197.4,197.31,3.0116]
[1739315312130,0.03448177,197.42,197.38,0.03335883]
[1739315312335,1.4828,197.42,197.31,13.85528063]
[1739315312535,1.51477143,197.42,197.38,0.03274702]
[1739315313738,5.0663,197.39,197.38,0.03274702]
[1739315315340,5.0676,197.34,197.28,13.85528063]
[1739315315538,13.85528063,197.4,197.28,13.85528063]